[Event "2nd Asian Nations Team Cup U14 2019"]
[Site "Shenzhen"]
[Date "2019.12.20"]
[Round "2.13"]
[White "Jin Yueheng"]
[Black "Wang, Benchi"]
[Result "1/2-1/2"]
[ECO "E11"]
[WhiteElo "1924"]
[BlackElo "1747"]
[Annotator "NA RC"]
[PlyCount "80"]
[EventDate "2019.12.19"]
[EventType "team-tourn"]
[EventCountry "CHN"]
[SourceTitle "playchess.com"]
[Source "ChessBase"]
[SourceQuality "1"]
[TimeControl "5400+30"]

1. d4 {[%emt 0:00:00]} Nf6 {[%emt 0:00:00]} 2. c4 {[%emt 0:00:00]} e6 {[%emt 0:00:34]} 3. Nf3 {[%emt 0:00:00]} Bb4+ {[%emt 0:00:32]} 4. Bd2 {[%emt 0:00:00]} Qe7 {[%emt 0:00:08]} 5. g3 {[%emt 0:00:04]} Ne4 {[%emt 0:01:53]} 6. Bg2 {[%emt 0:00:59]} Nxd2 {[%emt 0:06:36]} 7. Nbxd2 {[%emt 0:00:07]} d5 {[%emt 0:00:58]} 8. O-O {[%emt 0:00:20]} O-O {[%emt 0:00:48]} 9. Rc1 {[%emt 0:01:06]} c6 {[%emt 0:00:22]} 10. a3 {[%emt 0:00:12]} Bxd2 {[%emt 0:05:22]} 11. Qxd2 {[%emt 0:00:06]} Nd7 {[%emt 0:00:21]} 12. Rfd1 {[%emt 0:00:30]} dxc4 {[%emt 0:01:38]} 13. Rxc4 {[%emt 0:00:21]} e5 {[%emt 0:00:31]} 14. dxe5 {[%emt 0:04:15]} Nxe5 {[%emt 0:00:14]} 15. Nxe5 {[%emt 0:00:16]} Qxe5 {[%emt 0:00:06]} 16. Re4 {[%emt 0:01:02]} Qc7 {[%emt 0:00:52]} 17. Rd4 {[%emt 0:02:53]} Be6 {[%emt 0:01:06]} 18. Qd3 {[%emt 0:03:47]} c5 {[%emt 0:02:26]} 19. Rd6 {[%emt 0:00:33]} Rac8 {[%emt 0:02:04]} 20. Be4 {[%emt 0:02:44]} g6 {[%emt 0:02:52]} 21. h4 {[%emt 0:02:11]} c4 {[%emt 0:12:26]} 22. Qd4 {[%emt 0:00:36]} Qc5 {[%emt 0:07:08]} 23. Bxb7 {[%emt 0:04:28]} Qxd4 {[%emt 0:00:13]} 24. R1xd4 {[%emt 0:00:14]} Rb8 {[%emt 0:01:14]} 25. Ba6 {[%emt 0:00:23]} Rxb2 {[%emt 0:00:18]} 26. Bxc4 {[%emt 0:00:04]} Bxc4 {[%emt 0:02:23]} 27. Rxc4 {[%emt 0:00:03]} Rxe2 {[%emt 0:00:06]} 28. Rc7 {[%emt 0:00:15]} a5 {[%emt 0:01:04]} 29. Ra7 {[%emt 0:00:42]} Re5 {[%emt 0:02:13]} 30. Rda6 {[%emt 0:00:06]} Rb8 {[%emt 0:01:12]} 31. Rxa5 {[%emt 0:00:39]} Rb1+ {[%emt 0:01:15]} 32. Kg2 {[%emt 0:00:02]} Ree1 {[%emt 0:00:28]} 33. Rd5 {[%emt 0:01:28]} Rg1+ {[%emt 0:02:16]} 34. Kf3 {[%emt 0:00:17]} Rb3+ {[%emt 0:00:49]} 35. Ke2 {[%emt 0:00:06]} Ra1 {[%emt 0:01:46]} 36. Rd8+ {[%emt 0:00:31]} Kg7 {[%emt 0:00:02]} 37. Rdd7 {[%emt 0:00:12]} Ra2+ {[%emt 0:00:24]} 38. Rd2 {[%emt 0:01:22]} Raxa3 {[%emt 0:00:17]} 39. Rxa3 {[%emt 0:00:38]} Rxa3 {[%emt 0:00:09]} 40. Rd7 {[%emt 0:00:12]} h5 {[%emt 0:00:08]} 1/2-1/2

[Event "2nd Asian Nations Team Cup U14 2019"]
[Site "Shenzhen"]
[Date "2019.12.20"]
[Round "2.14"]
[White "Zhang, Yuanxiao"]
[Black "Zhang, Di"]
[Result "1/2-1/2"]
[ECO "B22"]
[WhiteElo "1545"]
[BlackElo "2013"]
[Annotator "NA RC"]
[PlyCount "172"]
[EventDate "2019.12.19"]
[EventType "team-tourn"]
[EventCountry "CHN"]
[SourceTitle "playchess.com"]
[Source "ChessBase"]
[SourceQuality "1"]
[TimeControl "5400+30"]

1. e4 {[%emt 0:00:00]} c5 {[%emt 0:00:00]} 2. c3 {[%emt 0:00:00]} d5 {[%emt 0:00:00]} 3. exd5 {[%emt 0:00:00]} Qxd5 {[%emt 0:00:00]} 4. d4 {[%emt 0:00:00]} Nc6 {[%emt 0:00:00]} 5. Nf3 {[%emt 0:00:03]} Bg4 {[%emt 0:00:37]} 6. Be2 {[%emt 0:01:34]} cxd4 {[%emt 0:00:11]} 7. cxd4 {[%emt 0:00:09]} e6 {[%emt 0:00:12]} 8. O-O {[%emt 0:00:51]} Nf6 {[%emt 0:00:08]} 9. Nc3 {[%emt 0:00:18]} Qd6 {[%emt 0:03:53]} 10. Be3 {[%emt 0:06:38]} Be7 {[%emt 0:00:36]} 11. Rc1 {[%emt 0:01:36]} O-O {[%emt 0:02:08]} 12. Qb3 {[%emt 0:02:07]} a6 {[%emt 0:04:30]} 13. Rfd1 {[%emt 0:00:16]} b5 {[%emt 0:04:49]} 14. a3 {[%emt 0:02:34]} Rfd8 {[%emt 0:00:28]} 15. Qc2 {[%emt 0:03:11]} Rac8 {[%emt 0:04:45]} 16. Qd2 {[%emt 0:01:10]} Qb8 {[%emt 0:00:51]} 17. h3 {[%emt 0:04:36]} Bh5 {[%emt 0:00:44]} 18. b4 {[%emt 0:01:52]} a5 {[%emt 0:03:31]} 19. bxa5 {[%emt 0:00:35]} Nxa5 {[%emt 0:00:25]} 20. Nxb5 {[%emt 0:02:26]} Rxc1 {[%emt 0:02:02]} 21. Qxc1 {[%emt 0:01:06]} Bxf3 {[%emt 0:00:09]} 22. gxf3 {[%emt 0:00:14]} Rc8 {[%emt 0:01:56]} 23. Qb1 {[%emt 0:02:49]} Nd5 {[%emt 0:00:39]} 24. Rc1 {[%emt 0:00:36]} Rxc1+ {[%emt 0:04:51]} 25. Bxc1 {[%emt 0:07:11]} Bd6 {[%emt 0:01:26]} 26. Bd3 {[%emt 0:02:01]} Bh2+ {[%emt 0:00:55]} 27. Kg2 {[%emt 0:01:08]} f5 {[%emt 0:01:15]} 28. Bd2 {[%emt 0:01:22]} Nc6 {[%emt 0:00:14]} 29. Nc3 {[%emt 0:01:44]} Qd6 {[%emt 0:04:16]} 30. Nxd5 {[%emt 0:02:28]} exd5 {[%emt 0:04:25]} 31. Bxf5 {[%emt 0:01:21]} g6 {[%emt 0:05:04]} 32. Bd3 {[%emt 0:01:28]} Bf4 {[%emt 0:01:58]} 33. Bc3 {[%emt 0:13:26]} Nd8 {[%emt 0:08:33]} 34. Qb3 {[%emt 0:01:59]} Ne6 {[%emt 0:00:52]} 35. a4 {[%emt 0:06:20]} Bg5 {[%emt 0:01:17]} 36. Bf1 {[%emt 0:01:29]} Bd8 {[%emt 0:00:42]} 37. Bb4 {[%emt 0:01:53]} Qd7 {[%emt 0:02:00]} 38. Qe3 {[%emt 0:01:36]} Bb6 {[%emt 0:07:42]} 39. Bc3 {[%emt 0:02:30]} Bc7 {[%emt 0:00:56]} 40. a5 {[%emt 0:01:17]} Qd6 {[%emt 0:00:35]} 41. Qe5 {[%emt 0:00:37]} Qd7 {[%emt 0:00:42]} 42. Bb5 {[%emt 0:04:04]} Qf7 {[%emt 0:00:20]} 43. Qe3 {[%emt 0:00:41]} Qf5 {[%emt 0:00:31]} 44. Bf1 {[%emt 0:01:08]} Ng5 {[%emt 0:08:25]} 45. f4 {[%emt 0:07:47]} Bxf4 {[%emt 0:02:33]} 46. Qd3 {[%emt 0:01:17]} Ne4 {[%emt 0:00:40]} 47. Be2 {[%emt 0:03:21]} Qg5+ {[%emt 0:00:06]} 48. Kf1 {[%emt 0:00:15]} Bh2 {[%emt 0:01:28]} 49. Bf3 {[%emt 0:00:41]} Qg1+ {[%emt 0:00:54]} 50. Ke2 {[%emt 0:00:14]} Qxf2+ {[%emt 0:00:50]} 51. Kd1 {[%emt 0:01:16]} Nxc3+ {[%emt 0:03:59]} 52. Qxc3 {[%emt 0:00:14]} Bf4 {[%emt 0:00:30]} 53. Bxd5+ {[%emt 0:02:08]} Kg7 {[%emt 0:00:01]} 54. Bc4 {[%emt 0:00:50]} Qg1+ {[%emt 0:01:08]} 55. Kc2 {[%emt 0:00:33]} Qc1+ {[%emt 0:00:10]} 56. Kb3 {[%emt 0:00:08]} Qd1+ {[%emt 0:00:54]} 57. Qc2 {[%emt 0:00:53]} Qa1 {[%emt 0:01:21]} 58. a6 {[%emt 0:01:26]} Bd6 {[%emt 0:00:26]} 59. Qc3 {[%emt 0:01:25]} Qa3+ {[%emt 0:01:30]} 60. Kc2 {[%emt 0:00:08]} Qa4+ {[%emt 0:00:03]} 61. Qb3 {[%emt 0:00:38]} Qd7 {[%emt 0:02:11]} 62. Qb7 {[%emt 0:02:08]} Qxb7 {[%emt 0:00:04]} 63. axb7 {[%emt 0:00:06]} Kf6 {[%emt 0:00:29]} 64. Kd3 {[%emt 0:00:35]} Bb8 {[%emt 0:00:37]} 65. Ke4 {[%emt 0:00:24]} g5 {[%emt 0:00:10]} 66. Be2 {[%emt 0:00:26]} Bc7 {[%emt 0:00:30]} 67. Kd5 {[%emt 0:00:20]} Ke7 {[%emt 0:00:04]} 68. Bg4 {[%emt 0:00:48]} Bb8 {[%emt 0:00:48]} 69. Ke4 {[%emt 0:00:54]} Kf6 {[%emt 0:00:01]} 70. Kd5 {[%emt 0:00:18]} Ke7 {[%emt 0:00:01]} 71. Kc6 {[%emt 0:00:26]} Bf4 {[%emt 0:00:19]} 72. d5 {[%emt 0:01:00]} Bb8 {[%emt 0:00:06]} 73. Kc5 {[%emt 0:00:27]} Bd6+ {[%emt 0:00:18]} 74. Kd4 {[%emt 0:00:27]} Bb8 {[%emt 0:00:13]} 75. Ke4 {[%emt 0:00:20]} Kf6 {[%emt 0:00:07]} 76. Bh5 {[%emt 0:00:10]} Bc7 {[%emt 0:00:17]} 77. Kf3 {[%emt 0:00:28]} Bb8 {[%emt 0:00:34]} 78. Kg4 {[%emt 0:00:21]} h6 {[%emt 0:00:28]} 79. Be8 {[%emt 0:00:23]} Bd6 {[%emt 0:00:01]} 80. Bd7 {[%emt 0:00:56]} Bc7 {[%emt 0:00:08]} 81. Kf3 {[%emt 0:00:25]} Bb8 {[%emt 0:00:26]} 82. Ke4 {[%emt 0:01:11]} Bd6 {[%emt 0:00:09]} 83. Be6 {[%emt 0:01:03]} Bb8 {[%emt 0:00:13]} 84. Kd4 {[%emt 0:00:07]} Ke7 {[%emt 0:00:17]} 85. Kc5 {[%emt 0:00:15]} Ba7+ {[%emt 0:00:12]} 86. Kc6 {[%emt 0:00:09]} Bb8 {[%emt 0:00:01]} 1/2-1/2

[Event "2nd Asian Nations Team Cup U14 2019"]
[Site "Shenzhen"]
[Date "2019.12.20"]
[Round "2.15"]
[White "Xiao, Tong"]
[Black "Liu, David J"]
[Result "1-0"]
[ECO "C43"]
[WhiteElo "1925"]
[BlackElo "1897"]
[Annotator "NA RC"]
[PlyCount "51"]
[EventDate "2019.12.19"]
[EventType "team-tourn"]
[EventCountry "CHN"]
[SourceTitle "playchess.com"]
[Source "ChessBase"]
[SourceQuality "1"]
[TimeControl "5400+30"]

1. e4 {[%emt 0:00:00]} e5 {[%emt 0:00:00]} 2. Nf3 {[%emt 0:00:00]} Nf6 {[%emt 0:00:00]} 3. d4 {[%emt 0:00:00]} exd4 {[%emt 0:01:29]} 4. e5 {[%emt 0:00:00]} Bb4+ {[%emt 0:00:31]} 5. c3 {[%emt 0:00:20]} dxc3 {[%emt 0:00:53]} 6. bxc3 {[%emt 0:00:05]} Qe7 {[%emt 0:00:26]} 7. cxb4 {[%emt 0:00:09]} Qxb4+ {[%emt 0:00:06]} 8. Bd2 {[%emt 0:00:05]} Qe4+ {[%emt 0:01:06]} 9. Qe2 {[%emt 0:00:08]} Qxe2+ {[%emt 0:00:34]} 10. Bxe2 {[%emt 0:00:05]} Ne4 {[%emt 0:01:14]} 11. Be3 {[%emt 0:01:00]} Nc6 {[%emt 0:00:53]} 12. Nbd2 {[%emt 0:00:49]} Nxd2 {[%emt 0:00:15]} 13. Kxd2 {[%emt 0:00:07]} O-O {[%emt 0:00:10]} 14. Bf4 {[%emt 0:00:19]} b6 {[%emt 0:03:07]} 15. h4 {[%emt 0:00:32]} Ne7 {[%emt 0:00:57]} 16. Bc4 {[%emt 0:00:39]} Bb7 {[%emt 0:01:24]} 17. h5 {[%emt 0:00:52]} Rab8 {[%emt 0:02:32]} 18. h6 {[%emt 0:01:01]} g6 {[%emt 0:00:26]} 19. Rhc1 {[%emt 0:01:37]} Rfd8 {[%emt 0:04:58]} 20. Bg5 {[%emt 0:00:37]} Re8 {[%emt 0:01:50]} 21. Bf6 {[%emt 0:00:34]} Nf5 {[%emt 0:01:03]} 22. Ng5 {[%emt 0:00:21]} Nxh6 {[%emt 0:02:42]} 23. Rh1 {[%emt 0:00:06]} Nf5 {[%emt 0:00:09]} 24. Rxh7 {[%emt 0:00:16]} Ng7 {[%emt 0:00:24]} 25. Rxg7+ {[%emt 0:00:11]} Kh8 {[%emt 0:00:21]} 26. Nxf7# {[%emt 0:00:07]} 1-0

[Event "2nd Asian Nations Team Cup U14 2019"]
[Site "Shenzhen"]
[Date "2019.12.20"]
[Round "2.18"]
[White "Kannappan, Thanneermalai"]
[Black "Tsogtbayar, Batlut"]
[Result "0-1"]
[ECO "B33"]
[WhiteElo "1495"]
[BlackElo "1404"]
[Annotator "NA RC"]
[PlyCount "102"]
[EventDate "2019.12.19"]
[EventType "team-tourn"]
[EventCountry "CHN"]
[SourceTitle "playchess.com"]
[Source "ChessBase"]
[SourceQuality "1"]
[TimeControl "5400+30"]

1. e4 {[%emt 0:00:00]} c5 {[%emt 0:00:02]} 2. Nf3 {[%emt 0:00:00]} Nc6 {[%emt 0:00:37]} 3. d4 {[%emt 0:00:17]} cxd4 {[%emt 0:00:27]} 4. Nxd4 {[%emt 0:00:19]} Qb6 {[%emt 0:00:37]} 5. Nb3 {[%emt 0:01:17]} Nf6 {[%emt 0:00:24]} 6. Nc3 {[%emt 0:02:42]} e6 {[%emt 0:00:21]} 7. Be3 {[%emt 0:05:57]} Qc7 {[%emt 0:00:25]} 8. Be2 {[%emt 0:11:18]} a6 {[%emt 0:01:53]} 9. O-O {[%emt 0:16:55]} Be7 {[%emt 0:01:42]} 10. f4 {[%emt 0:09:15]} d6 {[%emt 0:02:07]} 11. g4 {[%emt 0:08:56]} b5 {[%emt 0:03:19]} 12. g5 {[%emt 0:08:42]} Nd7 {[%emt 0:00:22]} 13. Bf3 {[%emt 0:01:53]} Bb7 {[%emt 0:01:25]} 14. Bg2 {[%emt 0:06:29]} h6 {[%emt 0:01:05]} 15. Qh5 {[%emt 0:06:58]} g6 {[%emt 0:11:33]} 16. Qe2 {[%emt 0:02:55]} hxg5 {[%emt 0:01:15]} 17. fxg5 {[%emt 0:02:24]} Nde5 {[%emt 0:00:36]} 18. Nd4 {[%emt 0:01:06]} Nxd4 {[%emt 0:01:28]} 19. Bxd4 {[%emt 0:00:12]} Bxg5 {[%emt 0:00:41]} 20. Bxe5 {[%emt 0:00:58]} dxe5 {[%emt 0:02:12]} 21. Rad1 {[%emt 0:01:05]} Bf4 {[%emt 0:01:01]} 22. h3 {[%emt 0:00:34]} Qb6+ {[%emt 0:01:01]} 23. Kh1 {[%emt 0:00:19]} Qe3 {[%emt 0:00:48]} 24. Rxf4 {[%emt 0:02:01]} Qxe2 {[%emt 0:00:43]} 25. Nxe2 {[%emt 0:00:05]} exf4 {[%emt 0:00:07]} 26. Nxf4 {[%emt 0:00:06]} g5 {[%emt 0:00:06]} 27. Ne2 {[%emt 0:01:38]} g4 {[%emt 0:00:14]} 28. Rd3 {[%emt 0:00:59]} gxh3 {[%emt 0:00:10]} 29. Rxh3 {[%emt 0:00:33]} Rxh3+ {[%emt 0:00:09]} 30. Bxh3 {[%emt 0:00:07]} Bxe4+ {[%emt 0:00:06]} 31. Kg1 {[%emt 0:00:07]} Bxc2 {[%emt 0:00:28]} 32. Nd4 {[%emt 0:00:10]} Be4 {[%emt 0:00:19]} 33. Kf2 {[%emt 0:00:07]} Ke7 {[%emt 0:00:10]} 34. Ke3 {[%emt 0:00:05]} f5 {[%emt 0:00:11]} 35. Bf1 {[%emt 0:00:27]} Kf6 {[%emt 0:00:09]} 36. Be2 {[%emt 0:00:13]} e5 {[%emt 0:00:06]} 37. Nf3 {[%emt 0:00:18]} Bxf3 {[%emt 0:00:07]} 38. Bxf3 {[%emt 0:00:04]} e4 {[%emt 0:00:07]} 39. Be2 {[%emt 0:00:03]} Ke5 {[%emt 0:00:09]} 40. b3 {[%emt 0:00:08]} f4+ {[%emt 0:00:05]} 41. Kf2 {[%emt 0:00:06]} Rc8 {[%emt 0:00:08]} 42. Ke1 {[%emt 0:00:22]} Rc2 {[%emt 0:00:13]} 43. a4 {[%emt 0:00:07]} bxa4 {[%emt 0:00:03]} 44. bxa4 {[%emt 0:00:07]} a5 {[%emt 0:00:05]} 45. Kd1 {[%emt 0:00:04]} Ra2 {[%emt 0:00:10]} 46. Bb5 {[%emt 0:00:10]} Kd4 {[%emt 0:00:07]} 47. Ba6 {[%emt 0:00:11]} f3 {[%emt 0:00:04]} 48. Bb5 {[%emt 0:00:10]} e3 {[%emt 0:00:07]} 49. Ba6 {[%emt 0:00:08]} Kc3 {[%emt 0:00:05]} 50. Bd3 {[%emt 0:00:12]} Ra1+ {[%emt 0:00:10]} 51. Bb1 {[%emt 0:00:06]} Rxb1# {[%emt 0:00:04]} 0-1

[Event "2nd Asian Nations Team Cup U14 2019"]
[Site "Shenzhen"]
[Date "2019.12.21"]
[Round "3.1"]
[White "Han, Xuqian Ben"]
[Black "Yin, Richard"]
[Result "0-1"]
[ECO "C84"]
[WhiteElo "1714"]
[BlackElo "1427"]
[Annotator "NA RC"]
[PlyCount "90"]
[EventDate "2019.12.19"]
[EventType "team-tourn"]
[EventCountry "CHN"]
[SourceTitle "playchess.com"]
[Source "ChessBase"]
[SourceQuality "1"]
[TimeControl "5400+30"]

1. e4 {[%emt 0:00:00]} e5 {[%emt 0:00:00]} 2. Nf3 {[%emt 0:00:00]} Nc6 {[%emt 0:00:10]} 3. Bb5 {[%emt 0:00:00]} a6 {[%emt 0:00:11]} 4. Ba4 {[%emt 0:00:00]} Nf6 {[%emt 0:00:37]} 5. d4 {[%emt 0:00:00]} exd4 {[%emt 0:16:36]} 6. O-O {[%emt 0:00:58]} Be7 {[%emt 0:02:05]} 7. Re1 {[%emt 0:01:42]} O-O {[%emt 0:05:07]} 8. e5 {[%emt 0:01:03]} Nd5 {[%emt 0:01:07]} 9. c3 {[%emt 0:01:58]} d6 {[%emt 0:02:47]} 10. Bxc6 {[%emt 0:11:27]} bxc6 {[%emt 0:00:03]} 11. cxd4 {[%emt 0:00:09]} Bf5 {[%emt 0:06:07]} 12. a3 {[%emt 0:02:56]} Rb8 {[%emt 0:05:19]} 13. Nc3 {[%emt 0:02:53]} Rb6 {[%emt 0:05:09]} 14. Nd2 {[%emt 0:10:05]} dxe5 {[%emt 0:13:49]} 15. Nc4 {[%emt 0:01:43]} Rb8 {[%emt 0:08:34]} 16. Nxe5 {[%emt 0:01:29]} Qd6 {[%emt 0:00:47]} 17. Qa4 {[%emt 0:01:21]} c5 {[%emt 0:01:30]} 18. Nxd5 {[%emt 0:02:12]} Qxd5 {[%emt 0:01:16]} 19. Nc6 {[%emt 0:00:12]} Bd6 {[%emt 0:01:29]} 20. Nxb8 {[%emt 0:00:35]} Rxb8 {[%emt 0:00:08]} 21. Re8+ {[%emt 0:00:16]} Rxe8 {[%emt 0:00:03]} 22. Qxe8+ {[%emt 0:00:06]} Bf8 {[%emt 0:00:02]} 23. Be3 {[%emt 0:01:41]} cxd4 {[%emt 0:00:48]} 24. Rd1 {[%emt 0:00:29]} d3 {[%emt 0:00:08]} 25. Qa4 {[%emt 0:01:50]} Qb7 {[%emt 0:07:48]} 26. Rd2 {[%emt 0:04:25]} h6 {[%emt 0:01:01]} 27. Qc4 {[%emt 0:05:17]} Bxa3 {[%emt 0:02:59]} 28. g4 {[%emt 0:01:42]} Be4 {[%emt 0:03:25]} 29. f3 {[%emt 0:00:05]} Bxf3 {[%emt 0:01:29]} 30. bxa3 {[%emt 0:00:27]} Be2 {[%emt 0:01:39]} 31. Rxe2 {[%emt 0:08:48]} dxe2 {[%emt 0:00:43]} 32. Qxe2 {[%emt 0:00:04]} Qe4 {[%emt 0:00:30]} 33. Kf1 {[%emt 0:02:31]} a5 {[%emt 0:02:05]} 34. Bf2 {[%emt 0:01:34]} Qf4 {[%emt 0:01:35]} 35. Kg2 {[%emt 0:00:44]} Qa4 {[%emt 0:01:46]} 36. Qf3 {[%emt 0:01:47]} Qb5 {[%emt 0:03:41]} 37. Qa8+ {[%emt 0:00:45]} Kh7 {[%emt 0:00:19]} 38. Qe4+ {[%emt 0:00:21]} Kg8 {[%emt 0:00:49]} 39. a4 {[%emt 0:00:18]} Qd7 {[%emt 0:01:40]} 40. Qd4 {[%emt 0:00:27]} Qc6+ {[%emt 0:00:42]} 41. Kg3 {[%emt 0:01:45]} Qc2 {[%emt 0:01:41]} 42. Kh3 {[%emt 0:03:15]} Qc6 {[%emt 0:01:23]} 43. Bg3 {[%emt 0:00:37]} Qf3 {[%emt 0:00:42]} 44. Kh4 {[%emt 0:06:59]} Qf1 {[%emt 0:01:07]} 45. Qc3 {[%emt 0:02:25]} g5+ {[%emt 0:00:39]} 0-1

[Event "2nd Asian Nations Team Cup U14 2019"]
[Site "Shenzhen"]
[Date "2019.12.21"]
[Round "3.2"]
[White "Lam, Chun Yung Samuel"]
[Black "Kannappan, Thanneermalai"]
[Result "1-0"]
[ECO "A05"]
[WhiteElo "1288"]
[BlackElo "1495"]
[Annotator "NA RC"]
[PlyCount "106"]
[EventDate "2019.12.19"]
[EventType "team-tourn"]
[EventCountry "CHN"]
[SourceTitle "playchess.com"]
[Source "ChessBase"]
[SourceQuality "1"]
[TimeControl "5400+30"]

1. Nf3 {[%emt 0:00:00]} Nf6 {[%emt 0:00:00]} 2. g3 {[%emt 0:00:00]} b6 {[%emt 0:00:00]} 3. Bg2 {[%emt 0:00:00]} Bb7 {[%emt 0:00:04]} 4. O-O {[%emt 0:00:00]} e6 {[%emt 0:00:08]} 5. d3 {[%emt 0:00:00]} d5 {[%emt 0:00:07]} 6. Nbd2 {[%emt 0:00:00]} Be7 {[%emt 0:00:06]} 7. Re1 {[%emt 0:00:00]} O-O {[%emt 0:00:24]} 8. c3 {[%emt 0:01:34]} c5 {[%emt 0:01:22]} 9. Qc2 {[%emt 0:01:13]} Nc6 {[%emt 0:01:01]} 10. e4 {[%emt 0:01:58]} d4 {[%emt 0:11:25]} 11. e5 {[%emt 0:03:40]} Nd5 {[%emt 0:10:36]} 12. Nf1 {[%emt 0:07:38]} b5 {[%emt 0:07:20]} 13. a3 {[%emt 0:03:26]} dxc3 {[%emt 0:15:05]} 14. bxc3 {[%emt 0:00:28]} b4 {[%emt 0:10:42]} 15. c4 {[%emt 0:00:54]} Nb6 {[%emt 0:04:28]} 16. a4 {[%emt 0:00:27]} a5 {[%emt 0:01:00]} 17. N1d2 {[%emt 0:00:09]} Qd7 {[%emt 0:10:18]} 18. Ne4 {[%emt 0:01:55]} Nd4 {[%emt 0:04:43]} 19. Nxd4 {[%emt 0:00:23]} Qxd4 {[%emt 0:00:53]} 20. Bb2 {[%emt 0:00:24]} Qd7 {[%emt 0:00:14]} 21. Qe2 {[%emt 0:01:44]} Rad8 {[%emt 0:01:13]} 22. Rad1 {[%emt 0:00:23]} Nxa4 {[%emt 0:01:27]} 23. Ba1 {[%emt 0:00:31]} Nb6 {[%emt 0:01:50]} 24. Qg4 {[%emt 0:00:33]} Kh8 {[%emt 0:02:07]} 25. Nf6 {[%emt 0:00:21]} Bxf6 {[%emt 0:01:04]} 26. exf6 {[%emt 0:00:21]} g6 {[%emt 0:00:37]} 27. Bxb7 {[%emt 0:00:54]} Qxb7 {[%emt 0:00:14]} 28. Qg5 {[%emt 0:00:14]} Qf3 {[%emt 0:01:30]} 29. Qh6 {[%emt 0:01:34]} Rg8 {[%emt 0:00:11]} 30. Rd2 {[%emt 0:02:37]} Qh5 {[%emt 0:04:15]} 31. Qf4 {[%emt 0:01:23]} Qf5 {[%emt 0:03:07]} 32. Qc7 {[%emt 0:00:55]} Nd7 {[%emt 0:01:39]} 33. Rde2 {[%emt 0:01:44]} Rge8 {[%emt 0:00:30]} 34. Rxe6 {[%emt 0:00:45]} fxe6 {[%emt 0:01:18]} 35. f7+ {[%emt 0:00:17]} Nf6 {[%emt 0:01:01]} 36. fxe8=Q+ {[%emt 0:00:28]} Rxe8 {[%emt 0:00:03]} 37. Qf7 {[%emt 0:00:23]} e5 {[%emt 0:01:14]} 38. Rxe5 {[%emt 0:02:27]} Rxe5 {[%emt 0:00:21]} 39. Qf8+ {[%emt 0:00:24]} Ng8 {[%emt 0:00:29]} 40. Qxf5 {[%emt 0:00:09]} gxf5 {[%emt 0:00:11]} 41. Bxe5+ {[%emt 0:00:06]} Nf6 {[%emt 0:00:05]} 42. Bxf6+ {[%emt 0:00:05]} Kg8 {[%emt 0:00:04]} 43. Kf1 {[%emt 0:00:45]} a4 {[%emt 0:00:05]} 44. Ke2 {[%emt 0:00:04]} a3 {[%emt 0:00:05]} 45. Kd2 {[%emt 0:00:13]} Kf7 {[%emt 0:00:54]} 46. Ba1 {[%emt 0:00:54]} b3 {[%emt 0:00:12]} 47. Kc3 {[%emt 0:00:12]} b2 {[%emt 0:00:05]} 48. Bxb2 {[%emt 0:00:03]} axb2 {[%emt 0:00:04]} 49. Kxb2 {[%emt 0:00:03]} Ke6 {[%emt 0:00:12]} 50. f4 {[%emt 0:00:09]} h5 {[%emt 0:00:28]} 51. Kc3 {[%emt 0:00:03]} Kd6 {[%emt 0:00:13]} 52. d4 {[%emt 0:00:03]} cxd4+ {[%emt 0:00:06]} 53. Kxd4 {[%emt 0:00:04]} Kc6 {[%emt 0:00:12] Ke4 Kd5+} 1-0